bitfinex-derivatives/quotes_BTCF0:USTF0_20250905
["timestamp","ask_amount","ask_price","bid_price","bid_amount"]
[1757038870511,0.002,111270.0,111260.0,0.0388]
[1757038870716,1.59014732,111270.0,111260.0,0.0388]
[1757038870919,1.61203503,111270.0,111260.0,0.0388]
[1757038871316,0.67311503,111270.0,111260.0,0.0388]
[1757038871513,1.25095503,111270.0,111260.0,0.0388]
[1757038871717,1.61175503,111270.0,111260.0,0.0388]
[1757038872920,0.002,111270.0,111260.0,0.3996]
[1757038873518,0.23242112,111270.0,111260.0,0.63002112]
[1757038876009,0.23242112,111270.0,111260.0,0.3996]
[1757038876215,0.23242112,111270.0,111260.0,0.63002112]
[1757038877921,0.23242112,111270.0,111260.0,0.26922112]
[1757038878521,0.23242112,111270.0,111260.0,0.0388]
[1757038879220,1.07364224,111270.0,111260.0,0.01771]
[1757038879421,0.84322112,111270.0,111260.0,0.04036]
[1757038882424,1.07364224,111270.0,111260.0,0.01771]
[1757038882627,1.09585301,111270.0,111260.0,0.00449]
[1757038884325,1.07364224,111270.0,111260.0,0.00449]
[1757038884630,1.09585077,111270.0,111260.0,0.00449]
[1757038885427,1.32627189,111270.0,111260.0,0.00449]
[1757038885633,1.32783672,111270.0,111230.0,0.03168932]
[1757038885931,0.46084224,111240.0,111230.0,0.03168932]
[1757038886136,1.38708224,111240.0,111230.0,0.05433932]
[1757038886724,1.38708224,111240.0,111230.0,0.03168932]
[1757038887126,1.38708224,111240.0,111230.0,0.05433932]
[1757038887730,1.38808224,111240.0,111230.0,0.05433932]
[1757038889437,0.92724,111240.0,111230.0,0.05433932]
[1757038889638,1.38808224,111240.0,111230.0,0.05433932]
[1757038896044,1.38808224,111240.0,111230.0,0.01846932]
[1757038896239,1.74888224,111240.0,111230.0,0.01846932]
[1757038896942,1.74888224,111240.0,111230.0,0.03126932]
[1757038897138,0.82264224,111240.0,111230.0,0.03126932]
[1757038897345,1.73968224,111240.0,111230.0,0.05391932]
[1757038897944,0.46184224,111240.0,111230.0,0.05391932]
[1757038898246,1.14818112,111240.0,111230.0,0.28434044]
[1757038898430,1.14818112,111240.0,111230.0,0.53434044]
[1757038898630,1.14818112,111240.0,111230.0,0.30391932]
[1757038900146,0.23142112,111240.0,111230.0,0.89514044]
[1757038900346,0.001,111240.0,111230.0,0.89514044]
[1757038901246,0.001,111240.0,111230.0,1.12556156]
[1757038901446,0.001,111240.0,111230.0,0.89514044]
[1757038902943,0.001,111240.0,111230.0,0.89614044]
[1757038903337,0.0001,111250.0,111240.0,0.03545]
[1757038903643,1.50544112,111260.0,111250.0,0.0128]
[1757038903945,1.50544112,111260.0,111250.0,0.03545]
[1757038903946,1.50534112,111260.0,111250.0,0.03545]
[1757038904944,1.73776224,111260.0,111250.0,0.03545]
[1757038906647,1.73876224,111260.0,111250.0,0.03545]
[1757038907049,1.27792,111260.0,111250.0,0.03545]
[1757038907246,1.73876224,111260.0,111250.0,0.03545]
[1757038911546,0.82464224,111260.0,111250.0,0.03545]
[1757038911748,1.73176224,111260.0,111250.0,0.03545]
[1757038913952,0.3638,111260.0,111250.0,0.26587112]
[1757038914147,0.003,111260.0,111250.0,0.87667112]
[1757038914861,0.23342112,111260.0,111250.0,0.87667112]
[1757038916251,0.003,111260.0,111250.0,0.87667112]
[1757038916453,0.23342112,111260.0,111250.0,0.87667112]
[1757038918852,0.82464224,111260.0,111250.0,0.03545]
[1757038919448,0.46384224,111260.0,111250.0,0.03545]
[1757038920155,0.82464224,111260.0,111250.0,0.03545]
[1757038921046,0.46384224,111260.0,111250.0,0.03545]
[1757038921947,0.003,111260.0,111250.0,0.62667112]
[1757038922256,1.13234112,111260.0,111250.0,0.62667112]
[1757038922653,1.49314112,111260.0,111250.0,0.03545]
[1757038923154,1.36276224,111260.0,111250.0,0.03545]
[1757038923752,0.46384224,111260.0,111250.0,0.03545]
[1757038924054,0.23342112,111260.0,111250.0,0.03545]
[1757038924356,0.90096,111260.0,111250.0,0.39625]
[1757038924659,0.003,111260.0,111250.0,1.21667112]
[1757038925053,0.003,111260.0,111250.0,0.87667112]
[1757038925256,0.003,111260.0,111250.0,1.77427112]
[1757038926957,0.001,111260.0,111250.0,1.77427112]
[1757038927562,0.001,111260.0,111250.0,1.77428241]
[1757038927752,0.001,111260.0,111250.0,2.10428241]
[1757038928959,0.001,111260.0,111250.0,1.77428241]
[1757038929851,0.001,111260.0,111250.0,2.08428241]
[1757038930047,0.001,111260.0,111250.0,1.77428241]
[1757038930854,0.001,111260.0,111250.0,2.10428241]
[1757038931168,0.001,111260.0,111250.0,1.77428241]
[1757038931664,0.001,111260.0,111250.0,1.77569241]
[1757038932066,0.001,111260.0,111250.0,2.15569241]
[1757038932266,0.001,111260.0,111250.0,1.86049241]
[1757038932866,0.001,111260.0,111250.0,2.24049241]
[1757038933867,0.001,111260.0,111250.0,1.86049241]
[1757038934068,0.001,111260.0,111250.0,2.20049241]
[1757038934570,0.0001,111270.0,111260.0,0.03503]
[1757038934763,0.00907706,111280.0,111270.0,0.03503]
[1757038934956,0.00897706,111280.0,111270.0,1.15966241]
[1757038935160,0.59133241,111290.0,111270.0,1.15966241]
[1757038935360,0.59292241,111290.0,111280.0,0.03457]
[1757038935561,0.59282241,111290.0,111280.0,0.03457]
[1757038935869,0.36239,111290.0,111280.0,0.03457]
[1757038936069,0.59282241,111290.0,111280.0,0.03457]
[1757038936367,0.60163472,111290.0,111280.0,0.03457]
[1757038937265,0.60463472,111290.0,111280.0,0.03457]
[1757038944171,0.62671709,111290.0,111280.0,0.03457]
[1757038944964,0.60463472,111290.0,111280.0,0.03457]
[1757038945773,0.24383472,111290.0,111280.0,0.03457]
[1757038946181,0.01340231,111290.0,111280.0,0.03457]
[1757038946374,0.24383472,111290.0,111280.0,0.03457]
[1757038946675,0.01340231,111290.0,111280.0,0.39537]
[1757038947074,0.01340231,111290.0,111280.0,0.96580241]
[1757038947373,0.01340231,111290.0,111280.0,0.73537]
[1757038947766,0.01340231,111290.0,111280.0,0.39537]
[1757038948168,0.01340231,111290.0,111280.0,0.74361887]
[1757038948369,0.01340231,111290.0,111280.0,0.41361887]
[1757038948669,0.01340231,111290.0,111280.0,0.78361887]
[1757038948974,0.01340231,111290.0,111280.0,0.41361887]
[1757038950572,0.003,111290.0,111280.0,1.23405128]
[1757038951678,0.003,111290.0,111280.0,0.89405128]
[1757038951875,0.003,111290.0,111280.0,2.12769128]
[1757038953564,0.00459,111290.0,111280.0,0.66361887]
[1757038953871,0.00459,111290.0,111280.0,1.55713887]
[1757038955476,0.01367087,111290.0,111280.0,1.55713887]
[1757038955677,0.01367087,111290.0,111280.0,1.55854887]
[1757038956179,0.01367087,111290.0,111280.0,1.64334887]
[1757038957377,0.85490328,111290.0,111280.0,0.12078]
[1757038957577,0.85490328,111290.0,111280.0,0.08621]
[1757038957966,0.87693391,111290.0,111280.0,0.08621]
[1757038958171,0.87693391,111290.0,111280.0,0.09943]
[1757038958467,0.60490328,111290.0,111280.0,0.12078]
[1757038959578,0.87693793,111290.0,111280.0,0.08621]
[1757038959882,0.87693843,111290.0,111280.0,0.08621]
[1757038960381,0.87693944,111290.0,111280.0,0.08621]
[1757038961382,0.87693944,111290.0,111280.0,0.00141]
[1757038962385,1.49798328,111290.0,111280.0,0.03598]
[1757038962577,1.49794328,111290.0,111280.0,0.03598]
[1757038964684,0.37447087,111290.0,111280.0,0.03598]
[1757038964888,1.49786328,111290.0,111280.0,0.03598]
[1757038965188,1.13706328,111290.0,111280.0,0.03598]
[1757038966095,1.49786328,111290.0,111280.0,0.03598]
[1757038966583,1.13706328,111290.0,111280.0,0.03598]
[1757038966789,0.01367087,111290.0,111280.0,0.03598]
[1757038966989,0.24410328,111290.0,111280.0,0.39678]
[1757038967179,0.24410328,111290.0,111280.0,0.03598]
[1757038967987,0.01367087,111290.0,111280.0,0.39678]
[1757038968387,0.01367087,111290.0,111280.0,0.03598]
[1757038970792,0.00459,111290.0,111280.0,0.03598]
[1757038970988,0.003,111290.0,111280.0,0.28598]
[1757038972193,0.003,111290.0,111280.0,0.64678]
[1757038972491,0.003,111290.0,111280.0,1.19721241]
[1757038972695,0.003,111290.0,111280.0,1.22721241]
[1757038973092,0.003,111290.0,111280.0,0.95751376]
[1757038973981,0.003,111290.0,111280.0,1.30751376]
[1757038975199,0.003,111290.0,111280.0,0.95751376]
[1757038975698,0.003,111290.0,111280.0,1.26751376]
[1757038975995,0.003,111290.0,111280.0,1.18721241]
[1757038976799,0.003,111290.0,111280.0,1.27201241]
[1757038977701,0.003,111290.0,111280.0,0.96201241]
[1757038978093,0.003,111290.0,111280.0,1.29201241]
[1757038978892,0.003,111290.0,111280.0,0.96201241]
[1757038979094,0.003,111290.0,111280.0,1.32201241]
[1757038979500,0.003,111290.0,111280.0,0.96201241]
[1757038979895,0.003,111290.0,111280.0,1.6235]
[1757038980202,0.003,111290.0,111280.0,1.85393241]
[1757038981292,0.003,111290.0,111280.0,1.93393241]
[1757038981492,0.003,111290.0,111280.0,1.60393241]
[1757038981694,0.003,111290.0,111280.0,1.93393241]
[1757038982003,0.003,111290.0,111280.0,1.60393241]
[1757038982300,0.003,111290.0,111280.0,1.93393241]
[1757038982996,0.003,111290.0,111280.0,1.60393241]
[1757038983198,0.003,111290.0,111280.0,1.93393241]
[1757038983494,0.003,111290.0,111280.0,0.71201241]
[1757038983708,0.23502241,111290.0,111280.0,0.48158]
[1757038983901,0.23502241,111290.0,111280.0,0.12078]
[1757038985703,0.23502241,111290.0,111280.0,0.48158]
[1757038986397,0.23502241,111290.0,111280.0,0.12078]
[1757038987598,0.48502241,111290.0,111280.0,0.12078]
[1757038987995,0.25459,111290.0,111280.0,0.12078]
[1757038988196,0.48502241,111290.0,111280.0,0.12078]
[1757038988397,0.48502241,111290.0,111280.0,0.48158]
[1757038988600,0.48502241,111290.0,111280.0,0.39678]
[1757038989400,0.25459,111290.0,111280.0,0.62713768]
[1757038989604,0.48494768,111290.0,111280.0,0.62713768]
[1757038991308,0.48494768,111290.0,111280.0,0.39678]
[1757038992399,0.48494768,111290.0,111280.0,0.62713768]
[1757038996002,0.48494768,111290.0,111280.0,0.70743903]
[1757038996509,0.003,111290.0,111280.0,1.31779671]
[1757038996705,0.003,111290.0,111280.0,1.18779671]
[1757038997107,0.003,111290.0,111280.0,1.56779671]
[1757038997312,0.003,111290.0,111280.0,1.18779671]
[1757038997806,0.00459,111290.0,111280.0,0.95743903]
[1757038998501,0.23494768,111290.0,111280.0,0.95743903]
[1757038999708,0.23494768,111290.0,111280.0,1.32743903]
[1757039000004,0.00459,111290.0,111280.0,1.32743903]
[1757039000207,0.23494768,111290.0,111280.0,1.32743903]
[1757039000507,0.23494768,111290.0,111280.0,1.41223903]
[1757039002308,0.00459,111290.0,111280.0,1.41223903]
[1757039005810,0.00459,111290.0,111280.0,1.32743903]
[1757039007807,0.00459,111290.0,111280.0,0.96663903]
[1757039008006,0.23494768,111290.0,111280.0,1.48599903]
[1757039008701,0.23494768,111290.0,111280.0,1.84679903]
[1757039013714,0.23494768,111290.0,111280.0,1.61644135]
[1757039014007,0.23494768,111290.0,111280.0,1.84679903]
[1757039015308,0.23494768,111290.0,111280.0,1.68159903]
[1757039015613,0.23494768,111290.0,111280.0,0.56188135]
[1757039015812,0.48494768,111290.0,111280.0,0.56188135]
[1757039016210,0.71530536,111290.0,111280.0,0.20108135]
[1757039016518,1.07610536,111290.0,111280.0,0.12078]
[1757039016719,0.84574768,111290.0,111280.0,0.12078]
[1757039018324,1.73394768,111290.0,111280.0,0.09943]
[1757039018521,1.96430536,111290.0,111280.0,0.09943]
[1757039020219,1.73394768,111290.0,111280.0,0.12223]
[1757039021217,1.96430536,111290.0,111280.0,0.03743]
[1757039021416,1.96430536,111290.0,111280.0,0.01463]
[1757039022318,1.96430536,111290.0,111280.0,0.00141]
[1757039022821,1.98630921,111290.0,111280.0,0.00141]
[1757039023209,1.96430536,111290.0,111280.0,0.00141]
[1757039023811,1.98630005,111290.0,111280.0,0.00041]
[1757039024114,1.98630005,111290.0,111260.0,0.01395]
[1757039024320,0.59115768,111270.0,111260.0,0.05675]
[1757039025313,0.59115768,111270.0,111260.0,0.05775]
[1757039025513,0.82151536,111270.0,111260.0,0.03495]
[1757039025717,0.59115768,111270.0,111260.0,0.03495]
[1757039025922,1.95867536,111270.0,111260.0,0.001]
[1757039026122,0.6108,111270.0,111260.0,0.02304]
[1757039026312,0.59125768,111280.0,111270.0,0.01281]
[1757039026517,1.70863536,111280.0,111270.0,0.03385]
[1757039026716,0.82151536,111280.0,111270.0,0.03385]
[1757039026917,1.70859536,111280.0,111270.0,0.03385]
[1757039027220,1.11739768,111280.0,111270.0,0.03385]
[1757039027419,1.34775536,111280.0,111270.0,0.03385]
[1757039027615,1.70855536,111280.0,111270.0,0.03385]
[1757039027815,1.34775536,111280.0,111270.0,0.03385]
[1757039028117,1.34875536,111280.0,111270.0,0.03385]
[1757039028419,1.35075536,111280.0,111270.0,0.03385]
[1757039029423,1.71155536,111280.0,111270.0,0.03385]
[1757039029920,1.35075536,111280.0,111270.0,0.03385]
[1757039030620,1.71155536,111280.0,111270.0,0.03385]
[1757039030819,1.35075536,111280.0,111270.0,0.03385]
[1757039031114,1.71155536,111280.0,111270.0,0.03385]
[1757039032920,0.46371536,111280.0,111270.0,0.03385]
[1757039033219,1.11971768,111280.0,111270.0,0.26420768]
[1757039033423,0.23335768,111280.0,111270.0,0.26420768]
[1757039033622,0.23335768,111280.0,111270.0,0.51420768]
[1757039036225,0.23335768,111280.0,111270.0,0.87500768]
[1757039036226,0.003,111280.0,111270.0,0.87500768]
[1757039039928,0.003,111280.0,111270.0,1.76068768]
[1757039041331,0.003,111280.0,111270.0,1.88068768]
[1757039041830,0.003,111280.0,111270.0,1.77867542]
[1757039042328,0.003,111280.0,111270.0,1.85897677]
[1757039042528,0.003,111280.0,111270.0,0.49293909]
[1757039042727,0.46371536,111280.0,111270.0,0.05183774]
[1757039043033,1.07451536,111280.0,111270.0,0.05183774]
[1757039043330,1.95959536,111280.0,111270.0,0.05183774]
[1757039043523,1.95959536,111280.0,111270.0,0.03079774]
[1757039045232,1.95959536,111280.0,111270.0,0.05183774]
[1757039045433,1.95959536,111280.0,111270.0,0.03079774]
[1757039045636,1.95959536,111280.0,111270.0,0.05183774]
[1757039045932,1.95951536,111280.0,111270.0,0.05183774]
[1757039047434,1.07451536,111280.0,111270.0,0.05183774]
[1757039047633,1.95903536,111280.0,111270.0,0.05183774]
[1757039048535,1.07451536,111280.0,111270.0,0.05183774]
[1757039048834,1.95903536,111280.0,111270.0,0.05183774]
[1757039049026,1.07451536,111280.0,111270.0,0.05183774]
[1757039049234,1.95883536,111280.0,111270.0,0.05183774]
[1757039049430,1.72855659,111280.0,111270.0,0.05183774]
[1757039049635,1.72855659,111280.0,111270.0,0.03079774]
[1757039052927,1.72855659,111280.0,111270.0,0.05183774]
[1757039054031,1.72855659,111280.0,111270.0,0.03079774]
[1757039057529,1.72855659,111280.0,111270.0,0.01798774]
[1757039057734,1.95899318,111280.0,111260.0,0.00041]
[1757039057932,0.59123659,111270.0,111260.0,0.14589]
[1757039058440,0.59123659,111270.0,111260.0,0.12422]
[1757039058630,0.59123659,111270.0,111260.0,0.14589]
[1757039058830,1.47431659,111270.0,111260.0,0.14589]
[1757039061535,1.47407659,111270.0,111260.0,0.14589]
[1757039061745,1.11327659,111270.0,111260.0,0.14589]
[1757039064946,1.47407659,111270.0,111260.0,0.14589]
[1757039066133,1.47407659,111270.0,111260.0,0.12422]
[1757039066738,1.47407659,111270.0,111260.0,0.12381]
[1757039067846,1.47407659,111270.0,111260.0,0.12422]
[1757039068047,1.47407659,111270.0,111260.0,0.11041]
[1757039068648,1.47407659,111270.0,111260.0,0.14589]
[1757039068843,1.11243659,111270.0,111260.0,0.14589]
[1757039069148,1.47323659,111270.0,111260.0,0.14589]
[1757039070147,1.47303659,111270.0,111260.0,0.14589]
[1757039070338,0.88164,111270.0,111260.0,0.14589]
[1757039070540,1.11207659,111270.0,111260.0,0.14589]
[1757039071048,1.47287659,111270.0,111260.0,0.14589]
[1757039071238,0.88164,111270.0,111260.0,0.14589]
[1757039071439,1.11207659,111270.0,111260.0,0.14589]
[1757039071643,0.59133659,111280.0,111270.0,0.03548]
[1757039071848,1.47283659,111280.0,111270.0,0.03548]
[1757039072648,1.47383659,111280.0,111270.0,0.03548]
[1757039074747,1.47483659,111280.0,111270.0,0.03548]
[1757039075547,0.59323659,111280.0,111270.0,0.03548]
[1757039075750,1.47411659,111280.0,111270.0,0.03548]
[1757039076645,1.47411659,111280.0,111260.0,0.03589]
[1757039076840,0.59123659,111270.0,111260.0,0.14589]
[1757039077945,0.82167318,111270.0,111260.0,0.12422]
[1757039078147,0.59123659,111270.0,111260.0,0.12422]
[1757039079149,0.23043659,111270.0,111260.0,0.14589]
[1757039079348,1.11083659,111270.0,111260.0,0.14589]
[1757039080253,1.47163659,111270.0,111260.0,0.14589]
[1757039080750,1.11083659,111270.0,111260.0,0.14589]
[1757039084962,1.47163659,111270.0,111260.0,0.14589]
[1757039085459,1.11083659,111270.0,111260.0,0.14589]
[1757039087459,1.11083659,111270.0,111260.0,0.22619135]
[1757039090054,1.10947659,111270.0,111260.0,0.22619135]
[1757039093062,1.47027659,111270.0,111260.0,0.22619135]
[1757039093456,1.10947659,111270.0,111260.0,0.22619135]
[1757039095467,1.10879659,111270.0,111260.0,0.22619135]
[1757039097968,1.10831659,111270.0,111260.0,0.22619135]
[1757039100470,0.23043659,111270.0,111260.0,0.22619135]
[1757039100771,1.10795659,111270.0,111260.0,0.22619135]
[1757039106183,1.69919318,111270.0,111260.0,0.19071135]
[1757039106383,1.94919318,111270.0,111260.0,0.11041]
[1757039108079,1.97117587,111270.0,111260.0,0.00041]
[1757039109181,1.97517587,111270.0,111260.0,0.00041]
[1757039109383,1.95319318,111270.0,111260.0,0.00041]
[1757039109986,1.95619318,111270.0,111260.0,0.00041]
[1757039110880,1.97815373,111270.0,111260.0,0.00041]
[1757039111290,1.95619318,111270.0,111260.0,0.00041]
[1757039111490,1.95643362,111270.0,111260.0,0.00041]
[1757039112191,2.18699043,111270.0,111260.0,0.00041]
[1757039112388,2.20894599,111270.0,111260.0,0.00041]
[1757039112776,1.97838918,111270.0,111260.0,0.00041]
[1757039113292,1.95643362,111270.0,111260.0,0.00041]
[1757039114286,2.18699043,111270.0,111260.0,0.00041]
[1757039114594,0.46111362,111240.0,111230.0,0.01381]
[1757039114785,0.46111362,111240.0,111230.0,0.24]
[1757039114786,1.69743362,111240.0,111230.0,0.24]
[1757039115782,1.70641068,111240.0,111230.0,0.24]
[1757039118291,1.70641068,111240.0,111220.0,0.03599]
[1757039118292,1.70593068,111240.0,111220.0,0.03599]
[1757039118497,1.10559681,111230.0,111220.0,0.30599]
[1757039118680,1.10559681,111230.0,111220.0,0.30589]
[1757039118886,1.46639681,111230.0,111220.0,0.30589]
[1757039122898,0.23055681,111230.0,111220.0,0.30589]
[1757039123092,1.46587681,111230.0,111220.0,0.30589]
[1757039125203,1.10507681,111230.0,111220.0,0.30589]
[1757039125494,1.46587681,111230.0,111220.0,0.30589]
[1757039125688,1.10507681,111230.0,111220.0,0.30589]
[1757039125891,1.46587681,111230.0,111220.0,0.30589]
[1757039129299,1.46587681,111230.0,111220.0,0.10589]
[1757039132707,0.3608,111230.0,111220.0,0.10589]
[1757039132910,1.54493257,111240.0,111230.0,0.03589]
[1757039133099,1.77538938,111240.0,111230.0,0.03589]
[1757039133602,2.00594619,111240.0,111220.0,0.03599]
[1757039133906,0.82191362,111230.0,111220.0,0.06325]
[1757039134103,0.82191362,111230.0,111210.0,0.03596]
[1757039134303,0.82191362,111230.0,111210.0,0.30596]
[1757039134304,1.33427362,111220.0,111210.0,0.30596]
[1757039134504,1.33427362,111220.0,111210.0,0.30586]
[1757039135810,1.69507362,111220.0,111210.0,0.30586]
[1757039135999,1.69507362,111220.0,111210.0,0.11586]
[1757039136900,0.87296,111220.0,111210.0,0.11586]
[1757039137102,0.59145681,111230.0,111220.0,0.01315]
[1757039137305,1.46419681,111230.0,111220.0,0.03589]
[1757039137704,0.87276,111230.0,111220.0,0.03589]
[1757039137897,1.10327681,111230.0,111220.0,0.39669]
[1757039138102,1.10327681,111230.0,111220.0,0.03589]
[1757039138712,1.23352,111230.0,111220.0,0.03589]
[1757039138898,1.46407681,111230.0,111220.0,0.03589]
[1757039139308,1.69463362,111230.0,111220.0,0.03589]
[1757039140206,1.69463362,111230.0,111220.0,0.01315]
[1757039140806,1.94463362,111230.0,111210.0,0.03596]
[1757039141111,0.82191362,111220.0,111210.0,0.09322]
[1757039141303,0.82191362,111220.0,111210.0,0.09312]
[1757039141503,0.46111362,111220.0,111210.0,0.11586]
[1757039141805,0.82191362,111220.0,111210.0,0.11586]
[1757039142711,0.46111362,111220.0,111210.0,0.11586]
[1757039142911,0.82191362,111220.0,111210.0,0.11686]
[1757039143512,0.82191362,111220.0,111210.0,0.11786]
[1757039143712,0.82191362,111220.0,111210.0,0.11686]
[1757039144011,0.82191362,111220.0,111210.0,0.09512]
[1757039144416,0.82191362,111220.0,111210.0,0.01512]
[1757039144910,1.30247043,111220.0,111210.0,0.002]
[1757039145106,1.07191362,111220.0,111210.0,0.002]
[1757039146015,1.30347043,111220.0,111210.0,0.001]
[1757039146511,1.32548787,111220.0,111200.0,0.01831801]
[1757039146714,1.33291362,111210.0,111200.0,0.14831801]
[1757039147019,1.33291362,111210.0,111200.0,0.14821801]
[1757039147318,1.33291362,111210.0,111200.0,0.02821801]
[1757039147911,1.33291362,111210.0,111200.0,0.01821801]
[1757039148511,1.69371362,111210.0,111200.0,0.01821801]
[1757039149008,1.94371362,111210.0,111190.0,0.0001]
[1757039149314,1.94371362,111210.0,111190.0,0.00459]
[1757039149315,0.82191362,111200.0,111190.0,0.00459]
[1757039149512,1.69339362,111200.0,111190.0,0.01835]
[1757039149706,1.46283681,111200.0,111190.0,0.65129681]
[1757039149917,1.46279681,111200.0,111190.0,0.44129681]
[1757039150118,1.46279681,111200.0,111190.0,0.21074]
[1757039150312,1.46279681,111200.0,111190.0,0.44229681]
[1757039150512,1.69335362,111200.0,111190.0,0.21174]
[1757039150712,1.69335362,111200.0,111190.0,0.21274]
[1757039152121,1.69335362,111200.0,111190.0,0.23274]
[1757039152419,1.46259681,111200.0,111190.0,0.46329681]
[1757039152622,1.46251681,111200.0,111190.0,0.48274]
[1757039153321,1.69307362,111200.0,111190.0,0.48274]
[1757039153623,1.33227362,111200.0,111190.0,0.48274]
[1757039153824,1.10175681,111200.0,111190.0,1.07409681]
[1757039155023,0.23055681,111200.0,111190.0,1.07409681]
[1757039155226,1.10163681,111200.0,111190.0,0.71329681]
[1757039155923,0.23055681,111200.0,111190.0,0.71329681]
[1757039156127,1.10147681,111200.0,111190.0,0.71329681]
[1757039156725,1.10147681,111200.0,111190.0,0.48274]
[1757039158616,1.10147681,111200.0,111190.0,0.71329681]
[1757039158924,1.10111681,111200.0,111190.0,0.71329681]
[1757039159925,1.10099681,111200.0,111190.0,0.71329681]
[1757039160127,1.10099681,111200.0,111190.0,0.48274]
[1757039160721,1.33155362,111200.0,111190.0,0.48274]
[1757039161026,1.10091681,111200.0,111190.0,0.48274]
[1757039161226,1.10091681,111200.0,111190.0,0.23274]
[1757039162426,1.10087681,111200.0,111190.0,0.46329681]
[1757039164129,1.10087681,111200.0,111190.0,0.82409681]
[1757039166330,0.23055681,111200.0,111190.0,0.82409681]
[1757039166916,0.3609,111210.0,111190.0,0.82409681]
[1757039167126,0.3609,111210.0,111200.0,0.26680681]
[1757039167127,0.77774,111210.0,111200.0,0.26680681]
[1757039167325,1.46105681,111220.0,111210.0,0.03625]
[1757039167542,1.69151362,111220.0,111210.0,0.20625]
[1757039167926,1.69151362,111220.0,111210.0,0.03625]
[1757039168830,1.69151362,111220.0,111210.0,0.04074]
[1757039169325,1.69251362,111220.0,111210.0,0.04074]
[1757039170230,1.69351362,111220.0,111210.0,0.04074]
[1757039172230,1.69351362,111220.0,111210.0,0.27129681]
[1757039172231,0.23255681,111220.0,111210.0,0.27129681]
[1757039172420,0.002,111220.0,111210.0,0.52129681]
[1757039172824,0.002,111220.0,111210.0,0.88129681]
[1757039173020,0.002,111220.0,111210.0,1.24209681]
[1757039173534,0.002,111220.0,111210.0,1.24213165]
[1757039173725,0.002,111220.0,111210.0,0.88213165]
[1757039173925,0.002,111220.0,111210.0,1.20213165]
[1757039174131,0.001,111220.0,111210.0,1.20213165]
[1757039174436,1.09969165,111230.0,111220.0,0.03625]
[1757039174731,0.869,111230.0,111220.0,0.03625]
[1757039174929,0.869,111230.0,111220.0,0.39705]
[1757039176234,0.60046871,111240.0,111230.0,0.01369]
[1757039176427,0.60046871,111240.0,111230.0,0.03659]
[1757039176428,1.46900871,111240.0,111230.0,0.03659]
[1757039176731,0.48956871,111240.0,111230.0,0.03659]
[1757039176933,1.35804871,111240.0,111230.0,0.03659]
[1757039177921,1.36104871,111240.0,111230.0,0.03659]
[1757039178125,1.36304871,111240.0,111230.0,0.03659]
[1757039178327,0.49456871,111240.0,111230.0,0.03659]
[1757039178629,0.88221706,111240.0,111230.0,0.03659]
[1757039179032,0.01397706,111240.0,111230.0,0.39739]
[1757039179228,0.01397706,111240.0,111230.0,0.62798165]
[1757039179631,0.01397706,111240.0,111230.0,0.70739]
[1757039180032,0.00897706,111240.0,111230.0,0.70739]
[1757039180226,0.001,111240.0,111230.0,0.70739]
[1757039180433,0.001,111240.0,111230.0,0.75739]
[1757039180633,1.09885165,111250.0,111230.0,0.39739]
[1757039180931,1.09885165,111250.0,111240.0,0.03659]
[1757039181133,1.09875165,111250.0,111240.0,0.03659]
[1757039183637,1.09819165,111250.0,111240.0,0.03659]
[1757039183837,1.10731107,111250.0,111240.0,0.03659]
[1757039184139,1.10831107,111250.0,111240.0,0.03659]
[1757039184438,1.10931107,111250.0,111240.0,0.03659]
[1757039189043,0.24171107,111250.0,111240.0,0.03659]
[1757039189243,1.10859107,111250.0,111240.0,0.04108]
[1757039189438,0.87799942,111250.0,111240.0,0.04108]
[1757039189644,0.87799942,111250.0,111240.0,0.36108]
[1757039189845,0.87799942,111250.0,111240.0,0.40188]
[1757039190143,0.01111942,111250.0,111240.0,0.40188]
[1757039190747,0.01111942,111250.0,111240.0,0.75188]
[1757039191839,0.01111942,111250.0,111240.0,0.42188]
[1757039192038,0.01111942,111250.0,111240.0,0.77188]
[1757039193251,0.01111942,111250.0,111240.0,0.40188]
[1757039194846,0.01111942,111250.0,111240.0,0.63247165]
[1757039195541,0.002,111250.0,111240.0,0.95247165]
[1757039195751,0.002,111250.0,111240.0,0.88247165]
[1757039196542,0.002,111250.0,111240.0,1.24247165]
[1757039196848,0.002,111250.0,111240.0,1.74851165]
[1757039197049,0.0001,111260.0,111250.0,0.03659]
[1757039197248,0.23059165,111260.0,111250.0,0.03659]
[1757039198350,0.24059928,111260.0,111250.0,0.03659]
[1757039198650,0.24159928,111260.0,111250.0,0.03659]
[1757039200448,0.01100763,111260.0,111250.0,0.03659]
[1757039200656,0.24159928,111260.0,111250.0,0.03659]
[1757039201452,0.01100763,111260.0,111250.0,0.03659]
[1757039202145,0.24159928,111260.0,111250.0,0.03659]
[1757039208552,0.24159928,111260.0,111250.0,0.04108]
[1757039216163,0.26359379,111260.0,111250.0,0.04108]
[1757039220868,0.51359379,111260.0,111250.0,0.01818]
[1757039221268,0.26359379,111260.0,111250.0,0.01818]
[1757039221773,0.03300214,111260.0,111250.0,0.04031]
[1757039222070,0.26359379,111260.0,111250.0,0.04031]
[1757039222964,0.26359379,111260.0,111250.0,0.00449]
[1757039222965,0.87439379,111260.0,111250.0,0.00449]
[1757039227666,0.85239928,111260.0,111250.0,0.00449]
[1757039231464,0.60239928,111260.0,111250.0,0.00449]
[1757039233475,0.83293283,111260.0,111250.0,0.00449]
[1757039233969,1.31349543,111260.0,111250.0,0.00449]
[1757039234869,1.33543825,111260.0,111250.0,0.00449]
[1757039235966,2.19691825,111260.0,111250.0,0.00449]
[1757039236166,1.33543825,111260.0,111250.0,0.00449]
[1757039236373,2.19679825,111260.0,111250.0,0.00449]
[1757039236777,1.33543825,111260.0,111250.0,0.00449]
[1757039236972,2.19671825,111260.0,111250.0,0.00449]
[1757039237470,1.94671825,111260.0,111250.0,0.00449]
[1757039237774,1.71615565,111260.0,111250.0,0.00449]
[1757039238371,1.71603565,111260.0,111250.0,0.04043]
[1757039238867,0.39375045,111260.0,111250.0,0.04043]
[1757039239178,1.69397283,111260.0,111250.0,0.04043]
[1757039240874,0.83293283,111260.0,111250.0,0.04043]
[1757039241173,1.69377283,111260.0,111250.0,0.04043]
[1757039242872,0.60237023,111260.0,111250.0,0.5209926]
[1757039243077,1.46321023,111260.0,111250.0,0.5209926]